Cogmind - Beta 13 @@@ ROGUE MODE // 2024.04.04 @ 13:24:09 Player: SPACEGOAT Result: Destroyed by X-67 Chaingunner with Minigun Performance ------------- Evolutions (3) 1500 Regions Visited (5) 1000 Robots Destroyed (32) 160 Value Destroyed (928) 928 Prototype IDs (0) 0 Alien Tech Used (0) 0 Bonus (0) 0 TOTAL SCORE: 3588 Bonus ------- None Cogmind --------- Core Integrity 0/700 Matter 149/300 Energy 58/100 System Corruption 0% Temperature Cool (-100) Movement Walking (120) Location -7/Factory Parts ------- > --- POWER (2) -------- (None) > --- PROPULSION (3) --- Flexi-carbon Leg > --- UTILITY (6) ------ Cryofiber Web System Shield > --- WEAPON (2) ------- Gauss Cannon > --- INVENTORY (5) ---- Advanced Terrain Scan Processor Core Analyzer Peak State ------------ > --- POWER ------------ Nuclear Core Light Angular Momentum Engine > --- PROPULSION ------- Carbon-fiber Leg Carbon-fiber Leg Titanium Leg > --- UTILITY ---------- Cryofiber Web Advanced Heat Sink Improved Utility Shielding Light Armor Plating > --- WEAPON ----------- Heavy Laser Heavy Assault Rifle > --- INVENTORY -------- Light Treads Improved Treads Improved Terrain Scan Processor Improved Grenade Launcher Axe [Rating: 36] Favorites ----------- Power Light Ion Engine Engine Light Ion Engine Power Core Nuclear Core Propulsion Flight Unit Treads Light Treads Leg Carbon-fiber Leg Wheel Compact Wheel Flight Unit Flight Unit Utility Small Storage Unit Device Seismic Detector Storage Small Storage Unit Hackware System Shield Protection Improved Utility Shielding Weapon Light Assault Rifle Energy Gun Medium Laser Ballistic Gun Light Assault Rifle Ballistic Cannon Gauss Cannon Launcher Missile Launcher Special Weapon Mining Laser Slashing Weapon Axe Special Melee Weapon Improved Datajack Build | -11 -10 -10 -10 -8 -7 ------- Run | Yrd Mat Min Sub Mat Fac Slots Evolved 6 | . . . . 4 2 Power 1 | . . . . 1 . Propulsion 1 | . . . . 1 . Utility 4 | . . . . 2 2 Weapon . | . . . . . . Parts Attached 63 | 7 1 5 8 31 11 Power 8 | 1 . . 1 5 1 Engine 5 | 1 . . 1 3 . Core 3 | . . . . 2 1 Reactor . | . . . . . . Propulsion 20 | 2 . 2 2 11 3 Treads 6 | 2 . . 2 2 . Leg 5 | . . . . 3 2 Wheel 1 | . . . . . 1 Hover . | . . . . . . Flight 8 | . . 2 . 6 . Utility 11 | 2 . . 2 5 2 Device 7 | 1 . . 2 3 1 Storage 1 | 1 . . . . . Processor . | . . . . . . Hackware 1 | . . . . . 1 Protection 2 | . . . . 2 . Artifact . | . . . . . . Weapon 24 | 2 1 3 3 10 5 Energy Gun 6 | . . 1 1 3 1 Energy Cannon . | . . . . . . Ballistic Gun 9 | 2 . 1 2 2 2 Ballistic Cannon 1 | . . . . . 1 Launcher 2 | . . . . 1 1 Special Weapon 4 | . 1 1 . 2 . Impact Weapon . | . . . . . . Slashing Weapon 1 | . . . . 1 . Piercing Weapon . | . . . . . . Special Melee Weapon 1 | . . . . 1 . Unidentified Prototypes . | . . . . . . Parts Lost 36 | . 1 . 4 16 15 Power 6 | . . . 1 3 2 Propulsion 11 | . 1 . . 6 4 Utility 8 | . . . 2 2 4 Weapon 11 | . . . 1 5 5 Highest Loss Streak 7 | . 1 . 2 6 7 To Critical Strikes . | . . . . . . Average Slot Usage (%) 76 | . 91 90 92 66 62 Engine 8 | . 14 14 14 6 . Core 1 | . . . . 2 5 Treads 3 | . 20 1 7 . . Leg 4 | . . . . 10 1 Flight 12 | . . 24 20 8 9 Device 13 | . 14 14 13 12 18 Storage 7 | . 14 14 14 4 . Protection 4 | . . . . 7 8 Energy Gun 5 | . . 1 7 6 1 Ballistic Gun 6 | . 22 15 10 3 1 Special Weapon 2 | . 5 3 2 1 . Naked Turns . | . . . . . . Heaviest Build 30 | 11 11 12 12 30 16 Greatest Support 47 | 40 40 20 40 47 20 Greatest Overweight (x) 4 | . . 1 1 4 3 Average Overweight (x) . | . . . . . . Largest Inventory Capacity 8 | 8 8 8 8 8 5 Average Capacity 7 | 7 8 8 8 6 5 Most Carried 8 | 7 7 8 8 7 5 Average Carried 4 | 5 7 7 4 4 3 Final Capacity 8 | 8 8 8 8 5 5 Final Carried 7 | 7 7 7 4 5 2 Class Distribution -------------------- 49% | Mutant 48% | Scavenger-Mutant Dominant Class ---------------- Mutant | -10/Materials Mutant | -10/Mines Scavenger-Mutant | -10/Subcaves Scavenger-Mutant | -8/Materials Mutant | -7/Factory Resources | -11 -10 -10 -10 -8 -7 ----------- Run | Yrd Mat Min Sub Mat Fac Matter Collected 826 | 318 9 44 97 288 70 Remotely . | . . . . . . Salvage Created 1084 | 245 48 44 33 472 242 Parts 62 | 19 4 7 2 21 9 Haulers Intercepted . | . . . . . . Recyclers Shooed 1 | . . . . 1 . Parts Field Recycled . | . . . . . . Retrieved Matter . | . . . . . . Parts Self-Destructed . | . . . . . . Prevented . | . . . . . . Kills | -11 -10 -10 -10 -8 -7 ------- Run | Yrd Mat Min Sub Mat Fac Combat Hostiles Destroyed 21 | . 3 3 1 8 6 Melee 2 | . . . . 2 . Guns 12 | . 3 3 1 3 2 AOE 6 | . . . . 2 4 Classes Destroyed 9 | 2 1 . 1 4 1 Builder 1 | . . . . 1 . Tunneler 7 | 7 . . . . . Recycler 2 | 1 . . . 1 . Operator 1 | . . . . 1 . Swarmer 6 | . 3 3 . . . Grunt 9 | . . . . 4 5 Sentry 4 | . . . . 4 . Specialist 1 | . . . . . 1 Subdweller 1 | . . . 1 . . Best Kill Streak 5 | 2 3 3 1 3 5 Combat Bots Only 5 | . 3 3 1 2 5 Max Kills in Single Turn 4 | 1 2 2 1 1 4 Gunslinging 1 | . 1 1 . . . Exploded 4 | . . . . 1 4 Melee 1 | . . . . 1 . Uniques/NPCs Destroyed . | . . . . . . Combat | -11 -10 -10 -10 -8 -7 -------- Run | Yrd Mat Min Sub Mat Fac Hostile Shots Fired 254 | . 18 9 23 112 92 Missed 90 | . 5 3 7 47 28 Damage Taken 3907 | . 232 55 581 1459 1580 Core 1285 | . 10 8 191 369 707 Absorbed by Shields . | . . . . . . Redirected to Shielding 109 | . . . . 20 89 Core Remaining (%) 49 | 100 . . 16 32 . Volleys Fired 132 | 24 13 7 18 47 23 Largest 2 | 2 2 2 2 2 2 Hottest 100 | 40 100 100 100 100 92 Shots Fired 193 | 48 20 10 33 53 29 Gun 155 | 48 14 6 30 31 26 Cannon 2 | . . . . . 2 Launcher 8 | . . . . 7 1 Special 28 | . 6 4 3 15 . Kinetic 106 | 48 14 6 15 6 17 Thermal 79 | . 6 4 18 40 11 Explosive 8 | . . . . 7 1 Electromagnetic . | . . . . . . Robot Hit Streak 10 | 6 2 3 7 10 5 Robot Miss Streak 4 | 2 4 3 3 3 3 Penetration Max . | . . . . . . Secondary Targets 4 | . 2 1 . . 1 Max Gunslinging Chain 1 | . 1 1 . . 1 Shots Hit Robots 109 | 30 5 3 22 28 21 Core Hits 58 | 14 4 3 3 18 16 Critical Kills . | . . . . . . Critical Parts Destroyed . | . . . . . . Critical Strikes 3 | . . . 1 2 . Burn 2 | . . . 1 1 . Sever 1 | . . . . 1 . Melee Attacks 8 | . . . . 8 . Impact . | . . . . . . Slashing 5 | . . . . 5 . Piercing . | . . . . . . Sneak Attacks . | . . . . . . Combat Hostiles . | . . . . . . Follow-up Attacks . | . . . . . . Damage Inflicted 2170 | 238 38 42 224 759 869 Guns 1157 | 238 38 42 224 299 316 Cannons 54 | . . . . . 54 Explosions 824 | . . . . 339 485 Melee 121 | . . . . 121 . Ramming 14 | . . . . . 14 Kinetic 698 | 238 38 42 101 43 236 Thermal 513 | . . . 123 256 134 Explosive 824 | . . . . 339 485 Electromagnetic . | . . . . . . Impact . | . . . . . . Slashing 121 | . . . . 121 . Piercing . | . . . . . . Highest Corruption 12 | . . . . 12 . Average Corruption 11 | . . . . 11 . Corruption Purged . | . . . . . . Corruption Blocked . | . . . . . . Effects 29 | . . . . 29 . Message Errors 7 | . . . . 7 . Matter Fused 10 | . . . . 10 . Heat Flow Errors 6 | . . . . 6 . Energy Discharges 3 | . . . . 3 . Data Loss (minor) 3 | . . . . 3 . Overload Shots . | . . . . . . Overflow Damage 122 | . . . . 21 101 Projectiles . | . . . . . . Explosions 122 | . . . . 21 101 Melee . | . . . . . . Knockbacks . | . . . . . . Impact . | . . . . . . Kinetic . | . . . . . . Secondary . | . . . . . . Self-Inflicted Damage 373 | . . . . 130 243 Shots 7 | . . . . 4 3 Rammed . | . . . . . . Targets Rammed 9 | . . . . . 9 Kicked 9 | . . . . . 9 Crushed . | . . . . . . Highest Temperature 235 | . 41 84 1 235 . Average Temperature 32 | . 17 39 1 37 . Received Heat Transfer 723 | . . . 84 450 189 Effects 1 | . . . . 1 . Energy Bleed 1 | . . . . 1 . Siege Activations . | . . . . . . Robots Corrupted . | . . . . . . Combat Hostiles . | . . . . . . Parts Fried . | . . . . . . Impact Corruptions . | . . . . . . Robots Melted 1 | . . . . 1 . Combat Hostiles 1 | . . . . 1 . Parts Melted 1 | . . . . 1 . Heat Transferred 1369 | . . . 444 666 259 Parts Sabotaged . | . . . . . . Parts Stolen . | . . . . . . Parts Stripped . | . . . . . . Power Chain Reactions . | . . . . . . Alert | -11 -10 -10 -10 -8 -7 ------- Run | Yrd Mat Min Sub Mat Fac Peak Influence 250 | 40 96 103 . 250 226 Initial 84 | . 26 33 . . 84 Average 93 | 14 60 98 . 110 117 Maximum Alert Level 1 | . . . . 1 1 Low Security (%) 81 | 100 100 100 . 71 86 Level 1 18 | . . . . 28 13 Level 2 . | . . . . . . Level 3 . | . . . . . . Level 4 . | . . . . . . Level 5 . | . . . . . . High Security . | . . . . . . Max Security . | . . . . . . Squads Dispatched 3 | . . . . 1 2 Investigation 1 | . . . . . 1 Extermination . | . . . . . . Reinforcement 2 | . . . . 1 1 Assault . | . . . . . . Garrison . | . . . . . . Intercept . | . . . . . . Searches Triggered . | . . . . . . Construction Impeded 1 | . . . . 1 . Haulers Reinforced . | . . . . . . Active Scanning Responses . | . . . . . . Cargo Convoy Interrupts . | . . . . . . Stealth | -11 -10 -10 -10 -8 -7 --------- Run | Yrd Mat Min Sub Mat Fac Distress Signals 3 | . . . . 3 . Communications Jammed . | . . . . . . Distress Signals . | . . . . . . Times Spotted 41 | . 4 3 2 25 7 Peak Tracking Total 9 | . 4 3 1 9 5 Tactical Retreats 2 | . . . . 2 . Traps | -11 -10 -10 -10 -8 -7 ------- Run | Yrd Mat Min Sub Mat Fac Traps Triggered 5 | . 1 . 4 . . Indirectly . | . . . . . . Trap Hack Attempts . | . . . . . . Triggered . | . . . . . . Disarmed . | . . . . . . Reprogrammed . | . . . . . . Reused . | . . . . . . Traps Extracted . | . . . . . . Installed . | . . . . . . Triggered . | . . . . . . Machines | -11 -10 -10 -10 -8 -7 ---------- Run | Yrd Mat Min Sub Mat Fac Machines Disabled 7 | . . . . 3 4 Max in Single Turn 2 | . . . . 2 2 Machines Repaired . | . . . . . . Machines Dismantled . | . . . . . . Machines Sabotaged . | . . . . . . Overloaded Fab Kills . | . . . . . . Hacking | -11 -10 -10 -10 -8 -7 --------- Run | Yrd Mat Min Sub Mat Fac Machines Accessed 3 | . . . . 2 1 Terminals 2 | . . . . 2 . Fabricators . | . . . . . . Repair Stations . | . . . . . . Recycling Units 1 | . . . . . 1 Scanalyzers . | . . . . . . Garrison Access . | . . . . . . Total Hacks 6 | . . . . 3 3 Successful 3 | . . . . 2 1 Failed 3 | . . . . 1 2 Catastrophic . | . . . . . . Database Lockouts . | . . . . . . Manual . | . . . . . . Terminals 3 | . . . . 3 . Fabricators . | . . . . . . Repair Stations . | . . . . . . Recycling Units 3 | . . . . . 3 Scanalyzers . | . . . . . . Garrison Access . | . . . . . . Terminal Hacks 2 | . . . . 2 . Emergency Access Points 1 | . . . . 1 . Zone Layout 1 | . . . . 1 . Fabricator Hacks . | . . . . . . Repair Station Hacks . | . . . . . . Recycling Unit Hacks 1 | . . . . . 1 Report Inventory 1 | . . . . . 1 Scanalyzer . | . . . . . . Garrison Access Hacks . | . . . . . . Unauthorized Hacks . | . . . . . . Terminals . | . . . . . . Fabricators . | . . . . . . Repair Stations . | . . . . . . Recycling Units . | . . . . . . Scanalyzers . | . . . . . . Garrison Access . | . . . . . . Data Cores Recovered 1 | . . . . 1 . Used . | . . . . . . Hacking Detections 2 | . . . . 1 1 Full Trace Events 1 | . . . . . 1 Feedback Events . | . . . . . . Feedback Blocked . | . . . . . . Robot Schematics Acquired . | . . . . . . Robots Built . | . . . . . . Authchips . | . . . . . . Time . | . . . . . . Total Robot Build Rating . | . . . . . . Part Schematics Acquired . | . . . . . . Parts Built . | . . . . . . Authchips . | . . . . . . Time . | . . . . . . Total Part Build Rating . | . . . . . . Parts Repaired . | . . . . . . Time . | . . . . . . Parts Recycled . | . . . . . . Recycled Matter . | . . . . . . Retrieved Matter . | . . . . . . Retrieved Components . | . . . . . . Parts Scanalyzed . | . . . . . . Part Schematics Acquired . | . . . . . . Parts Damaged . | . . . . . . Bothacking | -11 -10 -10 -10 -8 -7 ------------ Run | Yrd Mat Min Sub Mat Fac Used RIF Installer . | . . . . . . Robots Hacked 1 | . . . . 1 . Non-combat 1 | . . . . 1 . Combat . | . . . . . . Robot Hacks Applied 1 | . . . . 1 . parse_system 1 | . . . . 1 . Relay Couplers Released . | . . . . . . Fabnet Peak Effective % . | . . . . . . Robots Rewired . | . . . . . . Allies Hacked . | . . . . . . Hacks Repelled . | . . . . . . Allies | -11 -10 -10 -10 -8 -7 -------- Run | Yrd Mat Min Sub Mat Fac Total Allies . | . . . . . . Largest Group . | . . . . . . Highest-Rated Group . | . . . . . . Highest-Rated Ally . | . . . . . . Total Orders . | . . . . . . Ally Attacks . | . . . . . . Total Damage . | . . . . . . Kills . | . . . . . . Allies Corrupted . | . . . . . . Allies Melted . | . . . . . . Intel | -11 -10 -10 -10 -8 -7 ------- Run | Yrd Mat Min Sub Mat Fac Robot Analysis Total . | . . . . . . Derelict Logs Recovered 1 | . . 1 . . . Drone Launches . | . . . . . . Drone Recoveries . | . . . . . . Exploration | -11 -10 -10 -10 -8 -7 ------------- Run | Yrd Mat Min Sub Mat Fac Turns Passed 2355 | 263 108 97 654 931 302 Spaces Moved 1387 | 119 41 53 426 533 215 Core 50 | 13 . . . 23 14 Treads 245 | 106 41 2 84 12 . Legs 262 | . . . . 253 9 Wheels 170 | . . . . . 170 Hover . | . . . . . . Flight 660 | . . 51 342 245 22 Fastest Speed 29 | 50 160 117 117 29 50 Average Speed 110 | 147 160 118 125 87 102 Slowest Speed 250 | 160 160 160 160 250 200 Overloaded Moves . | . . . . . . Propulsion Burnouts . | . . . . . . Robots Hopped . | . . . . . . Cave-ins Triggered 3 | . . . . 3 . Exploration Rate (%) 19 | 7 11 20 27 44 6 Regions Visited 5 Branch Regions 2 Pre-discovered Areas . | . . . . . . Known Exits Taken . | . . . . . . Unknown Exits Taken 5 | 1 1 1 1 1 . Scrap Searched 3 | . . . 3 . . Spaces Dug 44 | . 6 . . 38 . Terrain Destroyed 157 | . 6 . . 104 47 Melee . | . . . . . . Projectile 21 | . 6 . . 15 . AOE 136 | . . . . 89 47 Terrain Rammed . | . . . . . . Walls Destroyed . | . . . . . . Machines Disabled . | . . . . . . Actions | -11 -10 -10 -10 -8 -7 --------- Run | Yrd Mat Min Sub Mat Fac Total 1966 | 169 54 70 503 903 267 Wait 298 | . . . 50 248 . Move 1382 | 118 40 52 425 532 215 Hop . | . . . . . . Pick Up 51 | 17 . 3 1 22 8 Fast Attach 8 | . . . . 7 1 Attach 41 | 7 . 2 5 17 10 Detach 6 | . . 1 1 4 . Swap 14 | . 1 3 3 7 . Drop 17 | 3 . 2 . 11 1 Fire 132 | 24 13 7 18 47 23 Melee 8 | . . . . 8 . Ram . | . . . . . . Kick 9 | . . . . . 9 Crush . | . . . . . . Escape Stasis . | . . . . . . Rewire . | . . . . . . Trap . | . . . . . . Miscellaneous . | . . . . . . Route ------- -11/Scrapyard -10/Materials -10/Mines -10/Subcaves -8/Materials -7/Factory History --------- Turn | Location | Event 8 | -11/Scrapyard | Discovered new exit (range 15) 264 | -11/Scrapyard | Entered Materials 288 | -10/Materials | Discovered new exit (range 15) 303 | -10/Materials | Build established: Mutant 372 | -10/Materials | Entered Mines 401 | -10/Mines | Learned Materials garrison access intel 433 | -10/Mines | Discovered new exit (range 16) 469 | -10/Mines | Entered Subcaves 758 | -10/Subcaves | Ambushed by Subdweller buried in earth 759 | -10/Subcaves | Core integrity fell below 50% 847 | -10/Subcaves | A swath of the cavern ceiling suddenly collapsed 914 | -10/Subcaves | Shifting Twisted Machinery released Shrapnel Trap 930 | -10/Subcaves | Shifting Twisted Machinery released Spk. Treads 1032 | -10/Subcaves | Core integrity fell below 20% 1099 | -10/Subcaves | Discovered new exit (range 12) 1123 | -10/Subcaves | Entered Materials 1123 | -8/Materials | Evolved 4 slots: Power x1, Propulsion x1, Utility x2 1124 | -8/Materials | Loaded intel: 1 garrison access location 1232 | -8/Materials | Lost 3 parts (1p1n1w) 1299 | -8/Materials | Crushed by falling debris 1336 | -8/Materials | Crushed by falling debris 1355 | -8/Materials | Crushed by falling debris 1355 | -8/Materials | System corruption reached 10% 1386 | -8/Materials | Lost 3 parts (1n2w) 1591 | -8/Materials | Core integrity fell below 50% 1620 | -8/Materials | Lost 6 parts (1p1n2u2w) 1891 | -8/Materials | Build established: Scavenger-Mutant 2048 | -8/Materials | Discovered new exit (range 5) 2054 | -8/Materials | Entered Factory 2054 | -7/Factory | Evolved 2 slots: Utility x2 2288 | -7/Factory | Lost 7 parts (1p3n1u2w) 2321 | -7/Factory | Core integrity fell below 50% 2344 | -7/Factory | Core integrity fell below 20% 2356 | -7/Factory | Destroyed by X-67 Chaingunner with Minigun Last Messages --------------- U-05 Engineer lays Concrete. Acquired 70 matter. U-05 Engineer lays Concrete. Kicked X-67 Chaingunner. U-05 Engineer lays Concrete. Kicked X-67 Chaingunner. U-05 Engineer lays Concrete. Kicked X-67 Chaingunner. U-05 Engineer lays Concrete. Kicked X-67 Chaingunner. U-05 Engineer lays Concrete. Kicked X-67 Chaingunner. U-05 Engineer lays Concrete. Kicked X-67 Chaingunner. U-05 Engineer lays Concrete. Kicked X-67 Chaingunner. U-05 Engineer lays Concrete. Kicked X-67 Chaingunner out of the way. U-05 Engineer lays Concrete. Acquired Gauss Cannon. Map ----- +----------------------------------------------------+ | ???????????????????????????????????############ | | ?????????????????????????????????????????# # | | ?????????????????????????????????????????# + | | ?????????????????????????????????????????# # ## | | ?????????????????????????????????????????# # #? | | ?????????????????? "?? ??????????????????# # #? | | ???#########????? "" ?????????????????# # #? | | ?# #????# "" ?????????????????# # #? | | ?# """ """ #????# ?????????????????###### #? | | ?# """ """ #????# ???????????????????####+## | | ?# """ """ #????# ???????????????????# | | ?# "" "" #????# ????????????????????# | | ?# "" "" #????# #????????????????????# | | ?# #????# #??????????????#+#???# | | ?# ! #????# #??????????????# #???# """ | | ######+########## ################ ##### """ | | # """ | | # "" | | """ """ """ "T" + "" | | """ """ """ # | | """ """ """ # | | ### ################# ## " | | ??# """ """ """ """ # #?????# ## * " | | ? # """ """ """ """ !#% ####### ## | | # """ """ """ """ %/x ; + " | | + !# @ ####### ## " | | [ # # #?????# ## | | ??# # ####### ##+##### | | ??# ### ### ; #???# | | ??# # #?# ######### #???# | | ??# + #############???????# #???# | | ??# # #??????????????????# #???# | | ??# # % ###??????????????????#### #???# | | ??# + ###?????????????????????# #???# | | ??# # #?????????????????????# #???# | | ??# # =# #?????????????????????# #???# | | ??# + #?????????????????????# ##### | | ??##### #?????????????????????# | | ??????# ##?????????????????????####### | | ??????# #????????????????????????????? | | ??????# #????????????????????????????? | | ??????#### # ## ###????????????????????????????? | | ????????# #??????????????????????????????? | | ????????### ## ####??????????????????????????????? | | ??????????###?##?????????????????????????????????? | | ?????????????????????????????????????????????????? | | ?????????????????????????????????????????????????? | | ?????????????????????????????????????????????????? | | ?????????????????????????????????????????????????? | | ?????????????????????????????????????????????????? | +----------------------------------------------------+ Best States ------------- Heat Dissipation 60 Energy Generation 27 Energy Capacity 315 Matter Stores 300 Matter Capacity 300 Sight Range 16 Terrain Scan Range 16 Terrain Scan Density 10 Base Temperature (-) 100 Armor Coverage 150 Utility Shielding 66 Evasion (%) 64 Recoil Reduction 2 Defensive Hacking 10 Item Schematics ----------------- None Robot Schematics ------------------ None Fabricated ------------ Nothing Alien Tech Used ----------------- None Achievements -------------- None Challenges ------------ None Game ------ Seed DerelictArchitectComputer Manual? 0 Play Time 00:55:17 Cumulative 10.5 hours Start 2024.04.04 @ 12:25:09 End 2024.04.04 @ 13:24:09 Sessions 1 Manual Loads 0 Difficulty Rogue Special Mode None Game No. 7 Rogue 7 Adventurer 0 Explorer 0 Win Type - Total 0 Types 0/0/0/0/0/0/0/0/0 Lore% 7 Gallery% 14 Achievement% 12 Wizard Run 0 Options --------- Layout 1 ASCII 0 Keyboard 0 Movement Mouse Keybinds 0 Fullscreen 1 Font 24/Smallcaps Map View 50x35 Zoom Use 0% Tactical HUD 0 Map Filters NONE Filters NONE Steam 1 RUN: 74213041-22d1-4125-bd98-5eed0cd29240